Workbook

Sheet Sheet1
A1: A spherical lens in the paraxial approximation.
C2: first interface drawing
C3: x | D3: z | G3: Type Ctrl+m to run the macro.
A4: R1 (cm) | B4: 3 | C4: 2 | D4: =-SIGN($B$4)*SQRT($B$4^2-C4^2)+$B$4 -> 0.7639320225
A5: R2 (cm) | B5: -3 | C5: =C4-0.1 -> 1.9 | D5: =-SIGN($B$4)*SQRT($B$4^2-C5^2)+$B$4 -> 0.6783626468
A6: d | B6: 4 | C6: =C5-0.1 -> 1.8 | D6: 0.6
C7: 1.7 | D7: 0.5281585811
A8: n1 | B8: 1 | C8: 1.6 | D8: 0.4622844919
A9: n2 | B9: 1.5 | C9: 1.5 | D9: 0.4019237886
C10: 1.4 | D10: 0.3467001677
A11: object x | B11: 0 | C11: 1.3 | D11: 0.2962988331
A12: object z<0 | B12: -10 | C12: 1.2 | D12: 0.250454583
A13: q(max) | B13: 0.1 | C13: 1.1 | D13: 0.2089428526
A14: limit | B14: 20 | C14: 1 | D14: 0.1715728753
C15: 0.9 | D15: 0.1381823957
C16: 0.8 | D16: 0.108633541
C17: 0.7 | D17: 0.08280957084
C18: 0.6 | D18: 0.06061230866
C19: 0.5 | D19: 0.04196010845
C20: 0.4 | D20: 0.02678625054
C21: 0.3 | D21: 0.01503768868
C22: 0.2 | D22: 0.006674090581
C23: 0.1 | D23: 0.001667129887
C24: -6.383782392e-16 | D24: 0 | F24: The ray tracing matrices:
C25: -0.1 | D25: 0.001667129887 | F25: T23 | H25: R2 | J25: Td | L25: R1 | N25: T12 | P25: r1
C26: =C25-0.1 -> -0.2 | D26: 0.006674090581 | F26: 1 | G26: 0 | H26: 1 | I26: =($B$9-$B$8)/$B$5 -> -0.1666666667 | J26: 1 | K26: 0 | L26: 1 | M26: =($B$8-$B$9)/$B$4 -> -0.1666666667 | N26: 1 | O26: 0 | P26: =$B$8*$B$13 -> 0.1
C27: -0.3 | D27: 0.01503768868 | F27: =($B$14-$B$6)/$B$9 -> 10.66666667 | G27: 1 | H27: 0 | I27: 1 | J27: =$B$6/$B$9 -> 2.666666667 | K27: 1 | L27: 0 | M27: 1 | N27: =-$B$12/$B$8 -> 10 | O27: 1 | P27: =$B$11 -> 0
C28: -0.4 | D28: 0.02678625054 | F28: The results of the matrix multiplications:
C29: -0.5 | D29: 0.04196010845 | F29: =MMULT(F26:G27,H29:H30) -> -0.2037037037 | H29: =MMULT(H26:I27,J29:J30) -> -0.2037037037 | J29: =MMULT(J26:K27,L29:L30) -> -0.06666666667 | L29: =MMULT(L26:M27,N29:N30) -> -0.06666666667 | N29: =MMULT(N26:O27,P26:P27) -> 0.1
C30: -0.6 | D30: 0.06061230866 | F30: -1.350617284 | H30: 0.8222222222 | J30: 0.8222222222 | L30: 1 | N30: 1
C31: =C30-0.1 -> -0.7 | D31: 0.08280957084
C32: =C31-0.1 -> -0.8 | D32: 0.108633541
C33: =C32-0.1 -> -0.9 | D33: 0.1381823957 | F33: Results:
C34: =C33-0.1 -> -1 | D34: 0.1715728753 | E34: z | F34: -10 | G34: 0 | H34: 4 | I34: 20
C35: =C34-0.1 -> -1.1 | D35: 0.2089428526 | E35: ray1 x | F35: 0 | G35: 1 | H35: 0.8222222222 | I35: -1.350617284
C36: -1.2 | D36: 0.250454583 | E36: ray2 x | F36: 0 | G36: 0.6666666667 | H36: 0.5481481481 | I36: -0.9004115226
C37: -1.3 | D37: 0.2962988331 | E37: ray3 x | F37: 0 | G37: 0.3333333333 | H37: 0.2740740741 | I37: -0.4502057613
C38: -1.4 | D38: 0.3467001677 | E38: ray4 x | F38: 0 | G38: 1.387778781e-16 | H38: 1.141062553e-16 | I38: -1.874358008e-16
C39: -1.5 | D39: 0.4019237886 | E39: ray5 x | F39: 0 | G39: -0.3333333333 | H39: -0.2740740741 | I39: 0.4502057613
C40: -1.6 | D40: 0.4622844919 | E40: ray6 x | F40: 0 | G40: -0.6666666667 | H40: -0.5481481481 | I40: 0.9004115226
C41: -1.7 | D41: 0.5281585811 | E41: ray7 x | F41: 0 | G41: -1 | H41: -0.8222222222 | I41: 1.350617284
C42: -1.8 | D42: 0.6
C43: -1.9 | D43: 0.6783626468
C44: -2 | D44: 0.7639320225
C46: second interface drawing
C47: x | D47: z
C48: 2 | D48: =-SIGN($B$5)*SQRT($B$5^2-C48^2)+$B$5+$B$6 -> 3.236067977
C49: =C48-0.1 -> 1.9 | D49: =-SIGN($B$5)*SQRT($B$5^2-C49^2)+$B$5+$B$6 -> 3.321637353
C50: =C49-0.1 -> 1.8 | D50: 3.4
C51: 1.7 | D51: 3.471841419
C52: 1.6 | D52: 3.537715508
C53: 1.5 | D53: 3.598076211
C54: 1.4 | D54: 3.653299832
C55: 1.3 | D55: 3.703701167
C56: 1.2 | D56: 3.749545417
C57: 1.1 | D57: 3.791057147
C58: 1 | D58: 3.828427125
C59: 0.9 | D59: 3.861817604
C60: 0.8 | D60: 3.891366459
C61: 0.7 | D61: 3.917190429
C62: 0.6 | D62: 3.939387691
C63: 0.5 | D63: 3.958039892
C64: 0.4 | D64: 3.973213749
C65: 0.3 | D65: 3.984962311
C66: 0.2 | D66: 3.993325909
C67: 0.1 | D67: 3.99833287
C68: -6.383782392e-16 | D68: 4
C69: -0.1 | D69: 3.99833287
C70: =C69-0.1 -> -0.2 | D70: 3.993325909
C71: -0.3 | D71: 3.984962311
C72: -0.4 | D72: 3.973213749
C73: -0.5 | D73: 3.958039892
C74: -0.6 | D74: 3.939387691
C75: -0.7 | D75: 3.917190429
C76: -0.8 | D76: 3.891366459
C77: -0.9 | D77: 3.861817604
C78: -1 | D78: 3.828427125
C79: =C78-0.1 -> -1.1 | D79: 3.791057147
C80: -1.2 | D80: 3.749545417
C81: -1.3 | D81: 3.703701167
C82: -1.4 | D82: 3.653299832
C83: -1.5 | D83: 3.598076211
C84: -1.6 | D84: 3.537715508
C85: -1.7 | D85: 3.471841419
C86: -1.8 | D86: 3.4
C87: -1.9 | D87: 3.321637353
C88: -2 | D88: 3.236067977
